[Event "Hungarian Super League 2024-25"]
[Site "Hungary"]
[Date "2024.11.02"]
[Round "1.26"]
[White "Papp, Bence"]
[Black "Kovacs, Gabor"]
[Result "1-0"]
[ECO "C21"]
[WhiteElo "2244"]
[BlackElo "2400"]
[Annotator "RC"]
[PlyCount "101"]
[EventDate "2024.10.30"]
[EventType "team-tourn"]
[EventCountry "HUN"]
[SourceTitle "playchess.com"]
[Source "ChessBase"]
[SourceQuality "1"]
[TimeControl "40/5400+30:1800+30"]

1. e4 {[%emt 0:00:35]} e5 {[%emt 0:00:39]} 2. d4 {[%emt 0:00:16]} exd4 {[%emt 0:00:06]} 3. c3 {[%emt 0:00:09]} d3 {[%emt 0:02:01]} 4. Bxd3 {[%emt 0:00:07]} d6 {[%emt 0:00:03]} 5. Nf3 {[%emt 0:00:43]} Nf6 {[%emt 0:00:04]} 6. O-O {[%emt 0:00:30]} Be7 {[%emt 0:00:02]} 7. Re1 {[%emt 0:01:21]} O-O {[%emt 0:00:06]} 8. h3 {[%emt 0:00:31]} Nbd7 {[%emt 0:02:13]} 9. Nd4 {[%emt 0:01:56]} Re8 {[%emt 0:01:31]} 10. f4 {[%emt 0:02:06]} Nc5 {[%emt 0:38:16]} 11. Bc2 {[%emt 0:00:38]} Bf8 {[%emt 0:00:04]} 12. Nd2 {[%emt 0:01:34]} c6 {[%emt 0:13:40]} 13. Qf3 {[%emt 0:05:43]} Qb6 {[%emt 0:01:25]} 14. Kh1 {[%emt 0:03:15]} Ne6 {[%emt 0:02:51]} 15. Nxe6 {[%emt 0:06:30]} Bxe6 {[%emt 0:00:14]} 16. f5 {[%emt 0:03:41]} Bc8 {[%emt 0:00:14]} 17. Nc4 {[%emt 0:01:51]} Qc5 {[%emt 0:06:53]} 18. b3 {[%emt 0:01:22]} d5 {[%emt 0:00:11]} 19. Ba3 {[%emt 0:03:26]} dxe4 {[%emt 0:00:07]} 20. Rxe4 {[%emt 0:01:04]} Qd5 {[%emt 0:14:05]} 21. Rd1 {[%emt 0:34:31]} Nxe4 {[%emt 0:00:26]} 22. Rxd5 {[%emt 0:00:41]} cxd5 {[%emt 0:00:03]} 23. Bxf8 {[%emt 0:00:16]} Kxf8 {[%emt 0:02:58]} 24. Ne3 {[%emt 0:01:28]} Nxc3 {[%emt 0:01:54]} 25. f6 {[%emt 0:04:53]} Be6 {[%emt 0:06:25]} 26. fxg7+ {[%emt 0:09:01]} Kxg7 {[%emt 0:00:05]} 27. Qg3+ {[%emt 0:00:13]} Kf8 {[%emt 0:00:04]} 28. Qd6+ {[%emt 0:00:50]} Kg8 {[%emt 0:00:05]} 29. Qg3+ {[%emt 0:00:05]} Kf8 {[%emt 0:00:02]} 30. Qe5 {[%emt 0:07:02]} Rac8 {[%emt 0:01:13]} 31. Qh8+ {[%emt 0:04:37]} Ke7 {[%emt 0:00:04]} 32. Qxh7 {[%emt 0:00:16]} Kd7 {[%emt 0:05:37]} 33. Bf5 {[%emt 0:00:41]} Re7 {[%emt 0:00:46]} 34. Qh4 {[%emt 0:01:26]} Rc6 {[%emt 0:00:56]} 35. Qd4 {[%emt 0:00:31]} Nb5 {[%emt 0:01:15]} 36. Qxd5+ {[%emt 0:00:21]} Nd6 {[%emt 0:00:04]} 37. Qd4 {[%emt 0:01:23]} a6 {[%emt 0:00:45]} 38. Be4 {[%emt 0:01:48]} Rc7 {[%emt 0:00:02]} 39. Kh2 {[%emt 0:01:39]} Re8 {[%emt 0:00:48]} 40. Nf5 {[%emt 0:00:00]} Bxf5 {[%emt 0:00:00]} 41. Bxf5+ {[%emt 0:00:08]} Kc6 {[%emt 0:00:23]} 42. Bg4 {[%emt 0:05:04]} Rd8 {[%emt 0:24:21]} 43. a4 {[%emt 0:01:26]} a5 {[%emt 0:02:03]} 44. b4 {[%emt 0:01:02]} b6 {[%emt 0:06:31]} 45. Qc3+ {[%emt 0:00:05]} Kb7 {[%emt 0:00:08]} 46. Bf3+ {[%emt 0:00:05]} Kb8 {[%emt 0:00:04]} 47. Qd4 {[%emt 0:00:04]} Nb7 {[%emt 0:00:35]} 48. Qxb6 {[%emt 0:00:15]} Rd6 {[%emt 0:00:19]} 49. Qb5 {[%emt 0:00:36]} axb4 {[%emt 0:00:14]} 50. a5 {[%emt 0:01:11]} Ka7 {[%emt 0:00:16]} 51. Bxb7 {[%emt 0:00:59]} 1-0

[Event "Hungarian Super League 2024-25"]
[Site "Hungary"]
[Date "2024.11.02"]
[Round "1.27"]
[White "Borhy, Marcell"]
[Black "Tubak, Daniel"]
[Result "1/2-1/2"]
[ECO "E06"]
[WhiteElo "2356"]
[BlackElo "2240"]
[Annotator "RC"]
[PlyCount "219"]
[EventDate "2024.10.30"]
[EventType "team-tourn"]
[EventCountry "HUN"]
[SourceTitle "playchess.com"]
[Source "ChessBase"]
[SourceQuality "1"]
[TimeControl "40/5400+30:1800+30"]

1. d4 {[%emt 0:00:35]} Nf6 {[%emt 0:00:40]} 2. c4 {[%emt 0:00:10]} e6 {[%emt 0:00:12]} 3. g3 {[%emt 0:00:06]} d5 {[%emt 0:00:26]} 4. Bg2 {[%emt 0:00:06]} Be7 {[%emt 0:01:04]} 5. Nf3 {[%emt 0:00:09]} O-O {[%emt 0:00:40]} 6. O-O {[%emt 0:00:10]} dxc4 {[%emt 0:01:35]} 7. Qc2 {[%emt 0:00:18]} b6 {[%emt 0:00:44]} 8. Ne5 {[%emt 0:00:26]} Qxd4 {[%emt 0:00:31]} 9. Bxa8 {[%emt 0:00:05]} Qxe5 {[%emt 0:00:06]} 10. Bf3 {[%emt 0:00:13]} Nd5 {[%emt 0:01:36]} 11. Qxc4 {[%emt 0:00:24]} Ba6 {[%emt 0:01:14]} 12. Qa4 {[%emt 0:00:18]} Bf6 {[%emt 0:03:09]} 13. Re1 {[%emt 0:05:03]} c5 {[%emt 0:07:39]} 14. Na3 {[%emt 0:05:52]} Qc7 {[%emt 0:09:42]} 15. Rb1 {[%emt 0:09:08]} Bb7 {[%emt 0:07:08]} 16. Nc2 {[%emt 0:26:47]} Nc6 {[%emt 0:10:02]} 17. Bf4 {[%emt 0:08:10]} Ne5 {[%emt 0:06:07]} 18. Bxe5 {[%emt 0:01:50]} Bxe5 {[%emt 0:00:36]} 19. Kg2 {[%emt 0:10:14]} a6 {[%emt 0:07:42]} 20. Ne3 {[%emt 0:02:04]} b5 {[%emt 0:01:41]} 21. Nxd5 {[%emt 0:01:44]} exd5 {[%emt 0:00:33]} 22. Qc2 {[%emt 0:01:14]} d4 {[%emt 0:07:16]} 23. b3 {[%emt 0:01:44]} Bxf3+ {[%emt 0:01:25]} 24. exf3 {[%emt 0:01:08]} g6 {[%emt 0:03:53]} 25. a4 {[%emt 0:04:42]} c4 {[%emt 0:01:52]} 26. axb5 {[%emt 0:00:19]} axb5 {[%emt 0:00:05]} 27. bxc4 {[%emt 0:00:29]} bxc4 {[%emt 0:00:07]} 28. Qe4 {[%emt 0:04:26]} Bf6 {[%emt 0:00:59]} 29. Rb7 {[%emt 0:04:21]} Qc8 {[%emt 0:06:31]} 30. Rb6 {[%emt 0:02:05]} Qd8 {[%emt 0:00:42]} 31. Rc6 {[%emt 0:05:36]} c3 {[%emt 0:00:30]} 32. Qd3 {[%emt 0:01:12]} Kg7 {[%emt 0:01:08]} 33. Re4 {[%emt 0:01:42]} Re8 {[%emt 0:01:50]} 34. Rxe8 {[%emt 0:01:22]} Qxe8 35. Qc4 {[%emt 0:00:39]} d3 {[%emt 0:05:56]} 36. Rxf6 {[%emt 0:00:15]} Kxf6 {[%emt 0:00:01]} 37. Qxc3+ {[%emt 0:00:07]} Qe5 {[%emt 0:00:09]} 38. Qxd3 {[%emt 0:00:16]} Kg7 {[%emt 0:00:01]} 39. Qe4 {[%emt 0:01:20]} Qf6 {[%emt 0:00:06]} 40. f4 {[%emt 0:00:00]} Qb6 {[%emt 0:00:00]} 41. h4 {[%emt 0:12:12]} h5 {[%emt 0:01:44]} 42. f5 {[%emt 0:01:44]} Qf6 {[%emt 0:00:31]} 43. fxg6 {[%emt 0:00:29]} fxg6 {[%emt 0:00:02]} 44. Qb7+ {[%emt 0:02:45]} Kg8 {[%emt 0:00:21]} 45. Qf3 {[%emt 0:02:44]} Qd6 {[%emt 0:03:17]} 46. Qe4 {[%emt 0:00:19]} Kg7 {[%emt 0:00:18]} 47. Kf3 {[%emt 0:01:29]} Qd1+ {[%emt 0:01:31]} 48. Kf4 {[%emt 0:00:39]} Qd2+ {[%emt 0:00:36]} 49. Qe3 {[%emt 0:00:27]} Qb4+ {[%emt 0:00:19]} 50. Kf3 {[%emt 0:00:23]} Qb7+ {[%emt 0:00:55]} 51. Qe4 {[%emt 0:00:17]} Qb3+ {[%emt 0:00:18]} 52. Kf4 {[%emt 0:03:42]} Qf7+ {[%emt 0:00:08]} 53. Ke3 {[%emt 0:00:01]} Qb3+ {[%emt 0:00:52]} 54. Ke2 {[%emt 0:00:50]} Qb2+ {[%emt 0:00:18]} 55. Kf1 {[%emt 0:00:38]} Qa1+ {[%emt 0:00:22]} 56. Kg2 {[%emt 0:00:09]} Qf6 {[%emt 0:00:22]} 57. Qe2 {[%emt 0:03:18]} Qc6+ {[%emt 0:00:24]} 58. f3 {[%emt 0:00:35]} Qd6 {[%emt 0:00:34]} 59. Kh3 {[%emt 0:01:47]} Qd7+ {[%emt 0:00:24]} 60. g4 {[%emt 0:00:33]} hxg4+ {[%emt 0:00:07]} 61. fxg4 {[%emt 0:00:01]} Qc7 {[%emt 0:01:43]} 62. Qb2+ {[%emt 0:00:49]} Kg8 {[%emt 0:01:03]} 63. Qd4 {[%emt 0:00:31]} Qc1 {[%emt 0:01:24]} 64. Qd8+ {[%emt 0:01:10]} Kg7 {[%emt 0:00:08]} 65. Qe7+ {[%emt 0:00:08]} Kg8 {[%emt 0:00:05]} 66. Kg3 {[%emt 0:01:02]} Qg1+ {[%emt 0:01:09]} 67. Kf4 {[%emt 0:00:25]} Qc1+ {[%emt 0:00:21]} 68. Qe3 {[%emt 0:01:11]} Qc7+ {[%emt 0:00:11]} 69. Kg5 {[%emt 0:00:57]} Kh7 {[%emt 0:00:47]} 70. Kf6 {[%emt 0:02:31]} Qg7+ {[%emt 0:00:39]} 71. Ke6 {[%emt 0:00:05]} Qg8+ {[%emt 0:00:36]} 72. Ke7 {[%emt 0:00:59]} Qg7+ {[%emt 0:00:08]} 73. Ke8 {[%emt 0:00:58]} Qg8+ {[%emt 0:00:12]} 74. Kd7 {[%emt 0:00:07]} Qd5+ {[%emt 0:00:06]} 75. Ke7 {[%emt 0:00:14]} Qb7+ {[%emt 0:01:42]} 76. Kf6 {[%emt 0:03:34]} Qg7+ {[%emt 0:00:20]} 77. Ke6 {[%emt 0:00:02]} Qg8+ {[%emt 0:00:10]} 78. Ke5 {[%emt 0:00:12]} Qe8+ {[%emt 0:00:31]} 79. Kf4 {[%emt 0:00:05]} Qf7+ {[%emt 0:00:05]} 80. Kg3 {[%emt 0:01:13]} Qc7+ {[%emt 0:00:13]} 81. Kh3 {[%emt 0:00:55]} Kg7 {[%emt 0:00:25]} 82. Qd4+ {[%emt 0:00:34]} Kh7 {[%emt 0:00:48]} 83. g5 {[%emt 0:00:07]} Qc8+ {[%emt 0:00:34]} 84. Kg3 {[%emt 0:00:01]} Qf5 {[%emt 0:00:26]} 85. Qa7+ {[%emt 0:00:25]} Kg8 {[%emt 0:00:07]} 86. Qb8+ {[%emt 0:00:06]} Kg7 {[%emt 0:00:15]} 87. Qc7+ {[%emt 0:00:04]} Kg8 {[%emt 0:00:06]} 88. Qd8+ {[%emt 0:00:10]} Kg7 {[%emt 0:00:06]} 89. Qc7+ {[%emt 0:01:45]} Kg8 {[%emt 0:00:06]} 90. Qe7 {[%emt 0:00:33]} Qf1 {[%emt 0:00:41]} 91. Qe3 {[%emt 0:01:28]} Kg7 {[%emt 0:00:23]} 92. Qc3+ {[%emt 0:00:25]} Kg8 {[%emt 0:00:06]} 93. Qf3 {[%emt 0:00:42]} Qe1+ {[%emt 0:00:19]} 94. Kh3 {[%emt 0:00:09]} Qe6+ {[%emt 0:00:14]} 95. Kg2 {[%emt 0:00:08]} Kg7 {[%emt 0:01:02]} 96. Qc3+ {[%emt 0:00:05]} Kg8 {[%emt 0:00:06]} 97. Kg3 {[%emt 0:00:08]} Qf5 {[%emt 0:00:12]} 98. Qe3 {[%emt 0:00:38]} Kg7 {[%emt 0:00:21]} 99. Qf4 {[%emt 0:00:58]} Qd3+ {[%emt 0:00:07]} 100. Kf2 {[%emt 0:00:08]} Qc2+ {[%emt 0:00:09]} 101. Kf3 {[%emt 0:00:06]} Qd3+ {[%emt 0:00:36]} 102. Qe3 {[%emt 0:00:50]} Qf5+ {[%emt 0:00:16]} 103. Ke2 {[%emt 0:00:08]} Qc2+ {[%emt 0:00:38]} 104. Ke1 {[%emt 0:00:22]} Qb1+ {[%emt 0:01:16]} 105. Kd2 {[%emt 0:00:12]} Qb2+ {[%emt 0:00:14]} 106. Kd3 {[%emt 0:00:05]} Qb3+ {[%emt 0:00:18]} 107. Ke4 {[%emt 0:00:07]} Qe6+ {[%emt 0:00:06]} 108. Kd4 {[%emt 0:01:43]} Qb6+ {[%emt 0:00:06]} 109. Ke4 {[%emt 0:00:04]} Qe6+ {[%emt 0:00:05]} 110. Kd4 {[%emt 0:00:04]} 1/2-1/2

[Event "Hungarian Super League 2024-25"]
[Site "Hungary"]
[Date "2024.11.02"]
[Round "1.28"]
[White "Kopasz, Robert"]
[Black "Gombocz, Ferenc Jr."]
[Result "1/2-1/2"]
[ECO "C55"]
[WhiteElo "2227"]
[BlackElo "2333"]
[Annotator "RC"]
[PlyCount "65"]
[EventDate "2024.10.30"]
[EventType "team-tourn"]
[EventCountry "HUN"]
[SourceTitle "playchess.com"]
[Source "ChessBase"]
[SourceQuality "1"]
[TimeControl "40/5400+30:1800+30"]

1. e4 {[%emt 0:00:44]} e5 {[%emt 0:00:37]} 2. Nf3 {[%emt 0:00:20]} Nc6 {[%emt 0:00:18]} 3. Bc4 {[%emt 0:00:48]} Nf6 {[%emt 0:00:45]} 4. d3 {[%emt 0:05:33]} Be7 {[%emt 0:00:32]} 5. Nc3 {[%emt 0:01:17]} d6 {[%emt 0:03:53]} 6. a4 {[%emt 0:03:04]} O-O {[%emt 0:01:17]} 7. h3 {[%emt 0:02:34]} Na5 {[%emt 0:04:55]} 8. Ba2 {[%emt 0:01:43]} c5 {[%emt 0:00:15]} 9. Bg5 {[%emt 0:07:53]} Nc6 {[%emt 0:02:43]} 10. O-O {[%emt 0:04:17]} h6 {[%emt 0:05:35]} 11. Bxf6 {[%emt 0:02:19]} Bxf6 {[%emt 0:00:06]} 12. Nd5 {[%emt 0:00:10]} g6 {[%emt 0:02:47]} 13. Nxf6+ {[%emt 0:02:13]} Qxf6 {[%emt 0:00:06]} 14. c3 {[%emt 0:03:33]} Kh7 {[%emt 0:08:37]} 15. Ne1 {[%emt 0:07:16]} Qh4 {[%emt 0:06:46]} 16. Nf3 {[%emt 0:12:48]} Qe7 {[%emt 0:04:12]} 17. Nd2 {[%emt 0:09:24]} f5 {[%emt 0:03:05]} 18. exf5 {[%emt 0:01:30]} Bxf5 {[%emt 0:00:42]} 19. Qe2 {[%emt 0:02:11]} Rae8 {[%emt 0:07:44]} 20. Rae1 {[%emt 0:02:52]} Nd8 {[%emt 0:05:37]} 21. f4 {[%emt 0:04:53]} Qd7 {[%emt 0:04:13]} 22. fxe5 {[%emt 0:02:11]} Qxa4 {[%emt 0:04:51]} 23. Bb3 {[%emt 0:03:31]} Qa6 {[%emt 0:00:47]} 24. Ne4 {[%emt 0:01:29]} dxe5 {[%emt 0:02:05]} 25. Nxc5 {[%emt 0:05:36]} Qb5 {[%emt 0:03:08]} 26. d4 {[%emt 0:02:07]} Qxe2 {[%emt 0:00:25]} 27. Rxe2 {[%emt 0:00:01]} exd4 {[%emt 0:00:07]} 28. Rxe8 {[%emt 0:03:50]} Rxe8 {[%emt 0:00:05]} 29. g4 {[%emt 0:01:50]} b6 {[%emt 0:14:19]} 30. gxf5 {[%emt 0:00:36]} bxc5 {[%emt 0:00:06]} 31. fxg6+ {[%emt 0:00:14]} Kxg6 {[%emt 0:00:35]} 32. cxd4 {[%emt 0:00:11]} cxd4 {[%emt 0:00:18]} 33. Rd1 {[%emt 0:01:12]} 1/2-1/2

[Event "Hungarian Super League 2024-25"]
[Site "Hungary"]
[Date "2024.11.02"]
[Round "1.29"]
[White "Lakos, Nikoletta"]
[Black "Megyaszai, Balazs"]
[Result "1/2-1/2"]
[ECO "B11"]
[WhiteElo "2184"]
[BlackElo "2054"]
[Annotator "RC"]
[PlyCount "65"]
[EventDate "2024.10.30"]
[EventType "team-tourn"]
[EventCountry "HUN"]
[SourceTitle "playchess.com"]
[Source "ChessBase"]
[SourceQuality "1"]
[TimeControl "40/5400+30:1800+30"]

1. e4 {[%emt 0:00:55]} c6 {[%emt 0:02:10]} 2. Nf3 {[%emt 0:09:01]} d5 {[%emt 0:05:51]} 3. Nc3 {[%emt 0:01:32]} Bg4 {[%emt 0:02:24]} 4. h3 {[%emt 0:06:53]} Bxf3 {[%emt 0:06:42]} 5. Qxf3 {[%emt 0:00:19]} e6 {[%emt 0:00:08]} 6. Be2 {[%emt 0:13:29]} Nd7 {[%emt 0:05:20]} 7. Qg3 {[%emt 0:21:43]} dxe4 {[%emt 0:28:21]} 8. Nxe4 {[%emt 0:00:14]} Nh6 {[%emt 0:01:04]} 9. Qb3 {[%emt 0:25:09]} Qb6 {[%emt 0:07:28]} 10. g4 {[%emt 0:05:07]} Nc5 {[%emt 0:08:46]} 11. Qxb6 {[%emt 0:03:19]} axb6 {[%emt 0:01:57]} 12. d3 {[%emt 0:01:21]} Ng8 {[%emt 0:03:30]} 13. Be3 {[%emt 0:03:01]} Nxe4 {[%emt 0:07:34]} 14. dxe4 {[%emt 0:00:01]} Nf6 {[%emt 0:02:01]} 15. Bd3 {[%emt 0:02:20]} Nd7 {[%emt 0:01:38]} 16. Ke2 {[%emt 0:00:19]} Bc5 {[%emt 0:03:22]} 17. f3 {[%emt 0:00:50]} Bxe3 {[%emt 0:00:58]} 18. Kxe3 {[%emt 0:00:01]} e5 {[%emt 0:00:11]} 19. a4 {[%emt 0:00:52]} Nc5 {[%emt 0:01:21]} 20. b3 {[%emt 0:00:31]} Ke7 {[%emt 0:00:56]} 21. Bc4 {[%emt 0:00:20]} Ne6 {[%emt 0:01:07]} 22. Bxe6 {[%emt 0:00:34]} Kxe6 {[%emt 0:00:08]} 23. Rad1 {[%emt 0:00:35]} Rhd8 {[%emt 0:00:59]} 24. Ke2 {[%emt 0:01:05]} f6 {[%emt 0:02:36]} 25. Rxd8 {[%emt 0:00:53]} Rxd8 {[%emt 0:00:01]} 26. Rd1 {[%emt 0:00:06]} Rxd1 {[%emt 0:01:31]} 27. Kxd1 {[%emt 0:00:01]} g5 {[%emt 0:00:08]} 28. Kd2 {[%emt 0:00:15]} b5 {[%emt 0:04:13]} 29. Kc3 {[%emt 0:02:53]} Kd6 {[%emt 0:00:51]} 30. axb5 {[%emt 0:01:10]} cxb5 {[%emt 0:00:16]} 31. Kb4 {[%emt 0:00:04]} Kc6 {[%emt 0:00:06]} 32. c4 {[%emt 0:00:59]} bxc4 {[%emt 0:00:15]} 33. Kxc4 {[%emt 0:00:09]} 1/2-1/2

[Event "Hungarian Super League 2024-25"]
[Site "Hungary"]
[Date "2024.11.02"]
[Round "1.30"]
[White "Markus, Molli Amina"]
[Black "Csontos, Aron"]
[Result "0-1"]
[ECO "A13"]
[WhiteElo "1862"]
[BlackElo "2224"]
[Annotator "RC"]
[PlyCount "66"]
[EventDate "2024.10.30"]
[EventType "team-tourn"]
[EventCountry "HUN"]
[SourceTitle "playchess.com"]
[Source "ChessBase"]
[SourceQuality "1"]
[TimeControl "40/5400+30:1800+30"]

1. Nf3 {[%emt 0:01:11]} d5 {[%emt 0:00:36]} 2. c4 {[%emt 0:00:21]} e6 {[%emt 0:00:06]} 3. g3 {[%emt 0:00:15]} Nf6 {[%emt 0:00:09]} 4. Bg2 {[%emt 0:00:29]} dxc4 {[%emt 0:00:08]} 5. Na3 {[%emt 0:02:20]} Bxa3 {[%emt 0:00:09]} 6. bxa3 {[%emt 0:00:06]} b5 {[%emt 0:00:11]} 7. a4 {[%emt 0:01:24]} a6 {[%emt 0:01:16]} 8. Bb2 {[%emt 0:04:23]} Bb7 {[%emt 0:01:30]} 9. axb5 {[%emt 0:04:23]} axb5 {[%emt 0:00:08]} 10. a4 {[%emt 0:02:25]} b4 {[%emt 0:06:20]} 11. Qc2 {[%emt 0:06:03]} Bd5 {[%emt 0:01:57]} 12. O-O {[%emt 0:02:20]} Nbd7 {[%emt 0:01:40]} 13. Nd4 {[%emt 0:12:02]} Nc5 {[%emt 0:18:31]} 14. Bxd5 {[%emt 0:22:03]} exd5 {[%emt 0:00:22]} 15. a5 {[%emt 0:02:38]} O-O {[%emt 0:06:55]} 16. Nc6 {[%emt 0:13:15]} Qd6 {[%emt 0:00:45]} 17. Nxb4 {[%emt 0:03:59]} Nb3 {[%emt 0:01:56]} 18. Ra4 {[%emt 0:00:15]} c5 {[%emt 0:09:53]} 19. Na2 {[%emt 0:01:40]} Qd7 {[%emt 0:10:29]} 20. Ra3 {[%emt 0:00:43]} d4 {[%emt 0:00:19]} 21. d3 {[%emt 0:04:41]} Qh3 {[%emt 0:05:01]} 22. f3 {[%emt 0:00:36]} Nd5 {[%emt 0:02:42]} 23. Bc1 {[%emt 0:03:28]} Nxc1 {[%emt 0:00:55]} 24. Qxc1 {[%emt 0:00:16]} c3 {[%emt 0:02:06]} 25. Qg5 {[%emt 0:03:21]} Ne3 {[%emt 0:00:53]} 26. Rf2 {[%emt 0:00:13]} Rab8 {[%emt 0:00:21]} 27. Nxc3 {[%emt 0:02:34]} dxc3 {[%emt 0:00:10]} 28. Ra1 {[%emt 0:00:37]} c2 {[%emt 0:00:53]} 29. Rc1 {[%emt 0:02:00]} Rfe8 {[%emt 0:00:17]} 30. Qxc5 {[%emt 0:03:11]} Rb1 {[%emt 0:00:33]} 31. Qxc2 {[%emt 0:01:41]} Nxc2 {[%emt 0:00:15]} 32. Rxb1 {[%emt 0:00:06]} Ne3 {[%emt 0:01:20]} 33. a6 {[%emt 0:00:15]} Qe6 {[%emt 0:00:46]} 0-1

[Event "Hungarian Super League 2024-25"]
[Site "Hungary"]
[Date "2024.11.02"]
[Round "1.31"]
[White "Gledura, Benjamin"]
[Black "Horvath, Jozsef"]
[Result "1-0"]
[ECO "D35"]
[WhiteElo "2652"]
[BlackElo "2393"]
[Annotator "TA"]
[PlyCount "75"]
[EventDate "2024.10.30"]
[EventType "team-tourn"]
[EventCountry "HUN"]
[SourceTitle "playchess.com"]
[Source "ChessBase"]
[SourceQuality "1"]
[TimeControl "40/5400+30:1800+30"]

{[%evp 12,75,13,20,7,0,0,-32,14,25,62,56,74,82,90,68,78,59,78,24,31,21,31,8,14,0,0,0,11,0,0,10,16,0,35,45,35,48,74,84,39,17,32,35,28,0,0,0,93,70,125,103,387,423,443,420,1046,670,29979,29980,29980,29981,29995,29996,29998,29999]} 1. d4 {[%emt 0:00:34]} Nf6 {[%emt 0:00:50]} 2. c4 {[%emt 0:00:12]} e6 {[%emt 0:00:17]} 3. Nc3 {[%emt 0:00:31]} d5 {[%emt 0:00:24]} 4. cxd5 {[%emt 0:00:30]} Nxd5 {[%emt 0:00:11]} 5. e4 {[%emt 0:00:11]} Nxc3 {[%emt 0:00:09]} 6. bxc3 {[%emt 0:00:05]} c5 {[%emt 0:00:11]} 7. Rb1 {[%emt 0:00:43]} Be7 {[%emt 0:00:33]} 8. Nf3 {[%emt 0:00:35]} O-O {[%emt 0:00:39]} 9. h4 {[%emt 0:00:38]} Nd7 {[%emt 0:08:54]} (9... b6 $15) 10. e5 $11 {[%emt 0:00:36]} Qc7 {[%emt 0:28:43]} 11. Bd3 {[%emt 0:05:46][%cal Od3h7] [#] Strongly threatening Bxh7+!} cxd4 {[%emt 0:00:56]} 12. cxd4 {[%emt 0:00:29]} Rd8 {[%emt 0:02:40]} 13. Be3 {[%emt 0:20:23]} Nf8 {[%emt 0:02:23]} 14. h5 {[%emt 0:02:16]} Bd7 {[%emt 0:09:55]} 15. h6 {[%emt 0:02:23]} ({White should try} 15. Kf1 $16) 15... g6 $1 {[%emt 0:00:19]} 16. O-O {[%emt 0:02:49]} Bc6 {[%emt 0:00:41]} 17. Nd2 {[%emt 0:02:01]} Nd7 {[%emt 0:04:59][%cal Od7e5]} 18. Qe2 {[%emt 0:18:27]} Nb6 {[%emt 0:03:17]} 19. Rfc1 {[%emt 0:02:38]} Rac8 {[%emt 0:02:08]} 20. Ne4 {[%emt 0:02:37]} Nd5 {[%emt 0:01:23]} 21. Bd2 {[%emt 0:01:03]} Nb6 {[%emt 0:08:29]} 22. Qg4 {[%emt 0:06:32]} Qd7 {[%emt 0:12:58]} 23. Bg5 {[%emt 0:05:28]} Bxe4 {[%emt 0:00:18]} 24. Bxe4 {[%emt 0:00:11]} Rxc1+ {[%emt 0:03:03]} 25. Rxc1 {[%emt 0:00:22]} Kf8 {[%emt 0:03:34]} ({Don't go for} 25... Bxg5 $2 26. Qxg5 Rc8 (26... Qxd4 $2 {too greedy.} 27. Qf6 $18) 27. Rxc8+ Qxc8 28. g3 $18) 26. Bf3 {[%emt 0:07:09]} Rc8 {[%emt 0:02:40]} 27. Bxe7+ {[%emt 0:04:16]} Kxe7 {[%emt 0:00:57]} 28. Rb1 {[%emt 0:00:30]} Ke8 {[%emt 0:00:31]} 29. Qf4 {[%emt 0:01:26]} Qe7 {[%emt 0:00:53]} (29... Rc2 $11 {remains equal.}) 30. a4 $36 {[%emt 0:00:16][%cal Ba2a4,Ba4a5][%mdl 2080] White has good play. White has more active pieces.} Rc7 {[%emt 0:00:54]} (30... Rd8 $1 $14) 31. a5 {[%emt 0:02:50]} Nc8 {[%emt 0:00:48][%mdl 8192] This costs Black the game.} (31... Nd5 $16 {was necessary.} 32. Bxd5 exd5) 32. d5 $18 {[%emt 0:00:43]} exd5 {[%emt 0:00:16]} 33. Bxd5 {[%emt 0:00:05] [#] Black must now prevent Rd1.} Qc5 {[%emt 0:01:19]} (33... b6 $142 34. Bb3 b5) 34. e6 {[%emt 0:02:12]} Nd6 {[%emt 0:00:45]} 35. exf7+ {[%emt 0:00:27] White mates.} Nxf7 {[%emt 0:00:32]} 36. Re1+ {[%emt 0:01:02] Black is weak on the light squares} Kf8 {[%emt 0:00:03]} 37. Bxf7 {[%emt 0:00:37]} Rxf7 {[%emt 0:00:13]} 38. Qb8+ {[%emt 0:00:08] Weighted Error Value: White=0.28 (precise) /Black=0.43.  Loses game:     	---       	Black=1      Mistake:       	White=1     	Black=4      Inaccurate:     	White=3     	Black=4      OK:         	White=8     	Black=8      Best:        	White=1     	Black=2      Strong:       	---       	Black=1} 1-0

[Event "Hungarian Super League 2024-25"]
[Site "Hungary"]
[Date "2024.11.02"]
[Round "1.32"]
[White "Turcan, Richard"]
[Black "Grigoriants, Sergey"]
[Result "0-1"]
[ECO "B50"]
[WhiteElo "2348"]
[BlackElo "2531"]
[Annotator "RC"]
[PlyCount "90"]
[EventDate "2024.10.30"]
[EventType "team-tourn"]
[EventCountry "HUN"]
[SourceTitle "playchess.com"]
[Source "ChessBase"]
[SourceQuality "1"]
[TimeControl "40/5400+30:1800+30"]

1. e4 {[%emt 0:00:34]} c5 {[%emt 0:01:06]} 2. Nf3 {[%emt 0:00:06]} d6 {[%emt 0:00:32]} 3. Nc3 {[%emt 0:03:11]} a6 {[%emt 0:04:31]} 4. g3 {[%emt 0:00:50]} Nc6 {[%emt 0:02:28]} 5. Bg2 {[%emt 0:02:05]} Nf6 {[%emt 0:09:07]} 6. d4 {[%emt 0:02:44]} cxd4 {[%emt 0:01:43]} 7. Nxd4 {[%emt 0:00:09]} Bd7 {[%emt 0:00:08]} 8. O-O {[%emt 0:01:32]} e6 {[%emt 0:01:12]} 9. Nb3 {[%emt 0:07:19]} b5 {[%emt 0:04:34]} 10. Bg5 {[%emt 0:10:17]} Rc8 {[%emt 0:14:45]} 11. a4 {[%emt 0:19:52]} b4 {[%emt 0:05:03]} 12. Na2 {[%emt 0:01:02]} h6 {[%emt 0:08:52]} 13. Bd2 {[%emt 0:04:42]} Rb8 {[%emt 0:01:08]} 14. Qe2 {[%emt 0:07:21]} a5 {[%emt 0:03:12]} 15. f4 {[%emt 0:01:58]} e5 {[%emt 0:08:12]} 16. f5 {[%emt 0:01:55]} Be7 {[%emt 0:01:33]} 17. Be3 {[%emt 0:03:12]} O-O {[%emt 0:01:27]} 18. Nac1 {[%emt 0:03:38]} Bc8 {[%emt 0:01:00]} 19. Nd3 {[%emt 0:04:24]} Ba6 {[%emt 0:01:15]} 20. Rad1 {[%emt 0:05:03]} Rc8 {[%emt 0:01:27]} 21. Bf3 {[%emt 0:02:33]} Nb8 {[%emt 0:02:11]} 22. Qf2 {[%emt 0:03:47]} Nbd7 {[%emt 0:00:39]} 23. Rd2 {[%emt 0:01:45]} d5 {[%emt 0:16:19]} 24. Qg2 {[%emt 0:00:01]} dxe4 {[%emt 0:01:07]} 25. Bxe4 {[%emt 0:00:03]} Nxe4 {[%emt 0:00:20]} 26. Qxe4 {[%emt 0:00:11]} Qc7 {[%emt 0:00:15]} 27. Qd5 {[%emt 0:02:35]} Rfd8 {[%emt 0:07:35]} 28. Qxa5 {[%emt 0:07:45]} Qxa5 {[%emt 0:00:16]} 29. Nxa5 {[%emt 0:00:02]} e4 {[%emt 0:00:07]} 30. Nf2 {[%emt 0:02:12]} Bxf1 {[%emt 0:00:14]} 31. Kxf1 {[%emt 0:00:34]} Ne5 {[%emt 0:01:25]} 32. Re2 {[%emt 0:00:40]} Ra8 {[%emt 0:00:58]} 33. Bb6 {[%emt 0:01:24]} Rd5 {[%emt 0:00:04]} 34. Nb3 {[%emt 0:01:13]} Rxa4 {[%emt 0:00:21]} 35. Rxe4 {[%emt 0:00:40]} Ra2 {[%emt 0:01:01]} 36. Bc7 {[%emt 0:00:38]} Bf6 {[%emt 0:01:20]} 37. Bxe5 {[%emt 0:00:31]} Bxe5 {[%emt 0:00:20]} 38. Nd3 {[%emt 0:00:10]} Bxb2 {[%emt 0:00:12]} 39. Nxb4 {[%emt 0:00:26]} Rxf5+ {[%emt 0:00:05]} 40. Ke2 {[%emt 0:00:00]} Ra4 {[%emt 0:00:00]} 41. Kd3 {[%emt 0:03:26]} Rf3+ {[%emt 0:03:52]} 42. Kc4 {[%emt 0:04:34]} Bc3 {[%emt 0:01:44]} 43. Kb5 {[%emt 0:01:08]} Rxb4+ {[%emt 0:00:32]} 44. Rxb4 {[%emt 0:00:06]} Bxb4 {[%emt 0:00:03]} 45. Kxb4 {[%emt 0:00:08]} Kf8 {[%emt 0:00:42]} 0-1